bitfinex/quotes_ETHUSD_20250519
["timestamp","ask_amount","ask_price","bid_price","bid_amount"]
[1747682444745,3.99256032,2504.7,2504.6,3.37816531]
[1747682444946,3.99256032,2504.7,2504.6,0.12468131]
[1747682445142,3.99106002,2505.6,2504.6,3.10167131]
[1747682445451,3.99170587,2505.2,2504.7,1.27473707]
[1747682445652,3.99197098,2505.1,2504.8,9.071]
[1747682445966,3.99217533,2504.9,2504.7,1.15005576]
[1747682446163,3.99202306,2505.0,2504.5,0.46988632]
[1747682446366,3.99217533,2504.9,2504.8,9.071]
[1747682446540,3.99217533,2504.9,2504.6,0.12464997]
[1747682446740,3.99217533,2504.9,2504.8,9.071]
[1747682447040,3.99217533,2504.9,2504.8,11.6384]
[1747682447237,3.99217533,2504.9,2504.8,11.76304997]
[1747682447963,3.99217533,2504.9,2504.8,9.19564997]
[1747682448338,3.99217533,2504.9,2504.8,0.49960735]
[1747682448541,3.99217533,2504.9,2504.8,9.56960735]
[1747682448779,3.99217533,2504.9,2504.8,0.49960735]
[1747682449143,0.7666,2505.5,2504.8,25.42961635]
[1747682449363,3.99090074,2505.7,2504.9,2.6055628]
[1747682449597,0.763,2506.1,2505.1,3.99173527]
[1747682449744,3.9911406,2505.6,2505.2,17.236]
[1747682449953,3.99114429,2505.6,2505.3,9.19464997]
[1747682450243,5.92181269,2506.3,2505.4,7.43762644]
[1747682450244,3.99059723,2505.9,2505.4,7.43762644]
[1747682450477,3.99091419,2505.7,2505.5,0.16455684]
[1747682450667,3.99091419,2505.7,2505.6,5.570145]
[1747682450863,3.99091419,2505.7,2505.6,5.69479497]
[1747682451064,3.99091419,2505.7,2505.6,9.34578341]
[1747682451389,3.99091419,2505.7,2505.6,9.28851441]
[1747682451556,3.99091419,2505.7,2505.6,6.91847179]
[1747682451883,3.99091419,2505.7,2505.6,3.81124079]
[1747682452084,3.99084297,2505.8,2505.6,3.81124079]
[1747682452247,3.99070169,2505.9,2505.7,18.73793846]
[1747682452455,3.99070169,2505.9,2505.8,0.12464997]
[1747682453073,3.99070169,2505.9,2505.8,9.19364997]
[1747682453274,3.99070169,2505.9,2505.8,0.12464997]
[1747682453480,4.82310169,2505.9,2505.8,9.19364997]
[1747682453675,4.82310169,2505.9,2505.8,9.44395738]
[1747682453897,4.82310169,2505.9,2505.8,0.37495738]
[1747682454097,4.82310169,2505.9,2505.8,9.44395738]
[1747682454915,6.25445648,2505.9,2505.8,0.37495738]
[1747682455215,3.99153793,2505.3,2505.0,0.62601164]
[1747682455510,3.99153793,2505.3,2505.2,26.30563899]
[1747682455897,3.99153793,2505.3,2505.2,66.54983799]
[1747682456114,3.99153793,2505.3,2505.2,75.8696892]
[1747682456302,3.99153793,2505.3,2505.2,66.9246892]
[1747682456498,3.99153793,2505.3,2505.2,75.8696892]
[1747682457884,3.99039919,2506.1,2505.2,75.8696892]
[1747682457885,3.99010454,2506.2,2505.2,80.7603819]
[1747682458104,3.99136544,2505.5,2505.3,22.928]
[1747682458302,3.99042298,2506.0,2505.4,20.893615]
[1747682458617,3.99122294,2505.5,2505.4,8.0]
[1747682458820,3.99122294,2505.5,2505.4,20.049329]
[1747682458985,3.99119036,2505.6,2505.4,24.1475217]
[1747682459181,3.99119036,2505.6,2505.5,6.438537]
[1747682459382,3.99119036,2505.6,2505.5,5.754327]
[1747682459596,3.99119036,2505.6,2505.5,4.89111783]
[1747682459919,3.99119036,2505.6,2505.5,8.12461083]
[1747682460126,3.99119036,2505.6,2505.5,9.06961083]
[1747682460284,6.11950081,2505.6,2505.5,0.12461083]
[1747682460482,6.11950081,2505.6,2505.2,8.945]
[1747682460483,3.99153793,2505.3,2505.2,8.945]
[1747682461220,4.54201596,2505.0,2504.9,0.4694236]
[1747682461518,5.32821596,2505.0,2504.9,0.4694236]
[1747682461753,5.32853471,2504.8,2504.7,0.62601164]
[1747682461884,6.65981,2504.8,2504.7,0.62601164]
[1747682463117,3.99408874,2503.7,2503.6,17.231]
[1747682463298,3.99408874,2503.7,2503.6,37.2799119]
[1747682463622,3.99408874,2503.7,2503.6,29.4046166]
[1747682463793,3.99408874,2503.7,2503.6,32.45494008]
[1747682463987,3.99408874,2503.7,2503.6,47.1408345]
[1747682464712,3.99408874,2503.7,2503.6,46.0027965]
[1747682464910,3.99408874,2503.7,2503.6,29.1157285]
[1747682465114,0.55,2504.5,2503.7,8.0]
[1747682465312,3.99392922,2503.8,2503.7,8.0]
[1747682465551,3.99392922,2503.8,2503.7,15.522065]
[1747682466026,3.99392922,2503.8,2503.7,15.6467697]
[1747682466790,3.99392922,2503.8,2503.7,11.8250267]
[1747682467200,3.99364348,2504.0,2503.7,16.03912353]
[1747682467431,3.99364348,2504.0,2503.7,12.33880153]
[1747682467615,3.99281293,2504.5,2503.7,12.33880153]
[1747682467812,3.99392922,2503.8,2503.7,8.37626742]
[1747682468124,3.99392922,2503.8,2503.7,23.97266542]
[1747682468325,3.99367355,2504.0,2503.7,15.15036619]
[1747682468527,3.99227326,2504.9,2503.8,9.89668]
[1747682468750,3.99361022,2504.0,2503.9,2.73446482]
[1747682468896,3.99376971,2503.9,2503.8,0.12470077]
[1747682469096,3.99376971,2503.9,2503.8,17.07170077]
[1747682469830,3.99376971,2503.9,2503.8,16.947]
[1747682470296,3.99376971,2503.9,2503.8,24.271311]
[1747682470499,3.99376971,2503.9,2503.8,22.987805]
[1747682470701,3.99376971,2503.9,2503.8,21.012275]
[1747682471521,3.99376971,2503.9,2503.8,12.065275]
[1747682471735,3.99376971,2503.9,2503.8,16.947]
[1747682472035,3.99376971,2503.9,2503.6,23.216]
[1747682472036,3.99408874,2503.7,2503.6,17.231]
[1747682472201,3.99408874,2503.7,2503.6,26.30370929]
[1747682473130,3.99408874,2503.7,2503.6,26.179]
[1747682473330,3.99408874,2503.7,2503.6,17.231]
[1747682473532,5.19227083,2503.7,2503.6,17.231]
[1747682473843,5.74227083,2503.7,2503.6,17.231]
[1747682474149,5.74227083,2503.7,2503.6,26.179]
[1747682474150,6.52157083,2503.7,2503.6,26.179]
[1747682474565,2.52748209,2503.7,2502.6,1.41321164]
[1747682474708,3.99568466,2502.7,2502.6,0.62601164]
[1747682474903,3.99568466,2502.7,2502.6,29.29856364]
[1747682475147,3.99568466,2502.7,2502.6,26.185]
[1747682475456,3.99568466,2502.7,2502.6,26.186]
[1747682475614,3.99568466,2502.7,2502.6,17.237]
[1747682475809,3.99568466,2502.7,2502.6,26.186]
[1747682476506,3.99564306,2502.8,2502.6,44.741441]
[1747682476825,3.99552501,2502.8,2502.7,9.21541]
[1747682477143,3.99552501,2502.8,2502.7,12.053064]
[1747682477313,3.99552501,2502.8,2502.7,2.883868]
[1747682477514,3.99568466,2502.7,2502.6,26.0012]
[1747682477714,3.99568466,2502.7,2502.6,42.627945]
[1747682477931,3.99456738,2503.4,2502.6,37.967109]
[1747682478244,3.99544012,2502.9,2502.6,39.0483927]
[1747682478439,3.99533457,2503.0,2502.7,19.753106]
[1747682478649,3.99533457,2503.0,2502.9,8.0]
[1747682478937,3.99552501,2502.8,2502.7,8.0]
[1747682479237,3.99522453,2503.0,2502.7,21.607935]
[1747682479440,3.99394594,2503.8,2502.9,8.0]
[1747682479741,0.7781,2503.9,2502.9,8.0]
[1747682480043,0.7781,2503.9,2503.0,0.7835]
[1747682480338,3.99450463,2503.5,2503.1,1.31782564]
[1747682480554,3.99450463,2503.5,2503.3,8.0]
[1747682480738,3.99440782,2503.5,2503.4,6.86163]
[1747682480942,3.99440782,2503.5,2502.9,8.0]
[1747682481244,3.99481027,2503.3,2503.1,8.0]
[1747682481412,3.99472696,2503.3,2503.2,18.607712]
[1747682481612,0.7781,2503.9,2503.2,27.358812]
[1747682481808,3.99361212,2504.0,2503.2,27.358812]
[1747682481809,3.99443587,2503.5,2503.3,8.0]
[1747682482139,3.99443587,2503.5,2503.4,10.127583]
[1747682482436,3.99443587,2503.5,2503.4,9.082963]
[1747682482637,3.99456738,2503.4,2503.2,0.7511]
[1747682482840,3.99520575,2503.0,2502.8,4.9138927]
[1747682483016,3.99520575,2503.0,2502.9,31.18622185]
[1747682483203,3.99520575,2503.0,2502.9,17.07573085]
[1747682483541,3.99520575,2503.0,2502.9,10.507456]
[1747682483725,3.99568466,2502.7,2502.5,0.7768]
[1747682483922,3.99568466,2502.7,2502.6,36.765699]
[1747682484354,3.99543465,2502.9,2502.7,8.0]
[1747682484673,3.9951392,2503.1,2502.9,8.0]
[1747682484829,3.9951392,2503.1,2503.0,11.165696]
[1747682485025,0.8096,2503.6,2503.0,11.169596]
[1747682485230,3.994855,2503.3,2503.2,8.0]
[1747682485533,3.99361022,2504.0,2503.3,8.0]
[1747682485843,3.99424828,2503.6,2503.4,8.794]
[1747682486153,3.99440782,2503.5,2503.4,8.794]
[1747682486482,3.99488654,2503.2,2503.1,8.7768]
[1747682486684,3.99507765,2503.1,2502.9,5.987]
[1747682486977,3.99507765,2503.1,2503.0,22.736861]
[1747682487162,3.99497774,2503.2,2503.1,8.0]
[1747682487363,3.99497774,2503.2,2503.1,10.5996]
[1747682487561,3.99497774,2503.2,2503.1,0.12473436]
[1747682487852,4.79395067,2503.2,2503.1,8.91873436]
[1747682488165,3.99497774,2503.2,2503.1,8.794]
[1747682489258,3.99488654,2503.2,2503.1,8.794]
[1747682489445,0.7786,2503.8,2503.1,8.794]
[1747682489649,3.99469804,2503.4,2503.2,0.12473279]
[1747682489877,3.99469804,2503.4,2503.3,13.356436]
[1747682490073,3.99445249,2503.5,2503.3,13.356436]
[1747682490245,3.99456738,2503.4,2503.3,2.34708986]
[1747682490447,3.99456738,2503.4,2503.3,10.059336]
[1747682490775,3.99456738,2503.4,2503.3,9.94690379]
[1747682490933,3.99456738,2503.4,2503.3,17.33563857]
[1747682491130,3.99456738,2503.4,2503.3,4.85317757]
[1747682491387,3.99456738,2503.4,2503.3,13.64817757]
[1747682492969,3.99456738,2503.4,2503.3,13.18497757]
[1747682493469,3.99456738,2503.4,2503.3,12.45409357]
[1747682494258,3.99456738,2503.4,2503.3,20.45409357]
[1747682495972,3.99456738,2503.4,2503.3,19.42598157]
[1747682496667,3.99456738,2503.4,2503.3,10.63098157]
[1747682496841,3.99456738,2503.4,2503.3,19.42598157]
[1747682497041,3.99456738,2503.4,2503.3,17.29646257]
[1747682497271,3.99456738,2503.4,2503.3,23.09306857]
[1747682497467,3.99456738,2503.4,2503.3,20.74306857]
[1747682497773,3.99456738,2503.4,2503.3,20.24288757]
[1747682497971,3.99456738,2503.4,2503.3,17.29646257]
[1747682498156,3.99456738,2503.4,2503.3,0.50146257]
[1747682498157,4.79346571,2503.4,2503.3,0.50146257]
[1747682498359,5.34346571,2503.4,2503.3,0.50146257]
[1747682498571,3.99568466,2502.7,2502.6,17.86301164]
[1747682498732,3.99568466,2502.7,2502.6,26.65801164]
[1747682498938,3.99568466,2502.7,2502.6,0.62601164]
[1747682498939,4.54568466,2502.7,2502.6,0.62601164]
[1747682499133,6.16070902,2502.7,2502.6,0.62601164]
[1747682501169,3.99664282,2502.1,2502.0,8.795]
[1747682501675,3.99664282,2502.1,2502.0,8.91980259]
[1747682502541,3.99664282,2502.1,2502.0,8.795]
[1747682502751,3.99712207,2501.8,2501.7,17.244]
[1747682502952,3.99760143,2501.5,2501.4,0.62601164]
[1747682503141,3.99760143,2501.5,2501.4,26.67001164]
[1747682503359,3.99760143,2501.5,2501.4,20.13240364]
[1747682503565,3.99760143,2501.5,2501.4,26.67001164]
[1747682503886,4.54760143,2501.5,2501.4,17.99783162]
[1747682504179,3.99735108,2501.7,2501.4,34.33412814]
[1747682504367,3.99713039,2501.8,2501.4,28.80110314]
[1747682504575,3.99673893,2502.1,2501.5,17.09324907]
[1747682504745,3.99682374,2502.0,2501.6,0.12481998]
[1747682504945,3.99728184,2501.7,2501.6,0.12481998]
[1747682505141,4.79303073,2502.3,2501.6,2.38871998]
[1747682505361,3.99720579,2501.8,2501.7,8.92281998]
[1747682505582,3.99720579,2501.8,2501.7,11.27931998]
[1747682505938,3.99704191,2501.9,2501.7,11.27931998]
[1747682506144,3.99712207,2501.8,2501.7,8.92281998]
[1747682506346,0.7966,2502.3,2501.7,14.98962398]
[1747682506547,3.99712207,2501.8,2501.7,8.92281998]
[1747682507052,3.99712207,2501.8,2501.7,13.61641998]
[1747682507393,0.7966,2502.3,2501.7,17.57708486]
[1747682507602,3.99677466,2502.1,2501.7,10.46961686]
[1747682508091,3.99677466,2502.1,2501.8,0.12481998]
[1747682508092,3.99671891,2502.1,2501.8,0.12481998]
[1747682508386,3.99653384,2502.2,2501.8,15.16109598]
[1747682508597,3.99669455,2502.1,2501.9,14.86075847]
[1747682508880,0.7512,2502.9,2502.0,4.446542]
[1747682509081,3.99649911,2502.2,2502.0,0.7703]
[1747682509388,3.99649911,2502.2,2502.1,11.27931998]
[1747682509750,3.99649911,2502.2,2502.1,8.92281998]
[1747682510179,3.99649911,2502.2,2502.1,12.67914798]
[1747682510784,3.99649911,2502.2,2502.1,0.12481998]
[1747682510976,3.99649911,2502.2,2502.1,8.92281998]
[1747682511550,3.99649911,2502.2,2502.1,8.798]
[1747682512550,0.7761,2502.6,2502.1,9.6778]
[1747682512787,3.99648309,2502.2,2502.1,8.798]
[1747682513103,3.99685796,2502.0,2501.7,0.7751]
[1747682513257,3.99696503,2501.9,2501.8,18.038332]
[1747682513456,3.99696503,2501.9,2501.8,10.859924]
[1747682513671,3.99696503,2501.9,2501.8,10.98472033]
[1747682514081,3.99696503,2501.9,2501.8,8.92279633]
[1747682514288,3.99696503,2501.9,2501.8,6.95753733]
[1747682514497,0.7761,2502.6,2501.8,14.17980106]
[1747682514664,4.77205738,2502.6,2501.9,0.12479633]
[1747682515073,3.99657398,2502.2,2502.0,0.12479633]
[1747682515268,3.99664282,2502.1,2502.0,0.12479633]
[1747682515473,3.99664282,2502.1,2502.0,8.85979633]
[1747682515673,3.99664282,2502.1,2502.0,8.735]
[1747682515870,3.99711296,2501.9,2501.7,0.7751]
[1747682516076,3.9969623,2501.9,2501.8,13.242338]
[1747682516287,3.9969623,2501.9,2501.8,11.676511]
[1747682516474,3.9969623,2501.9,2501.8,11.80130828]
[1747682516671,3.9969623,2501.9,2501.8,0.12479728]
[1747682516963,4.79634227,2501.9,2501.8,0.12479728]
[1747682517261,4.79634227,2501.9,2501.8,8.85979728]
[1747682517485,4.79634227,2501.9,2501.8,8.735]
[1747682517685,3.99760143,2501.5,2501.4,17.247]
[1747682518081,4.75390143,2501.5,2501.4,25.982]
[1747682518401,6.17903917,2501.5,2501.4,17.247]
[1747682518603,6.17903917,2501.5,2501.4,25.982]
[1747682519595,0.7563,2502.6,2501.5,8.7768]
[1747682519805,3.99649322,2502.2,2501.7,3.99724141]
[1747682520000,3.99649322,2502.2,2501.8,12.240662]
[1747682520295,3.99649322,2502.2,2501.9,0.12477927]
[1747682520296,3.99680255,2502.0,2501.9,0.12477927]
[1747682520699,3.99728184,2501.7,2501.6,0.12477927]
[1747682520997,3.99760143,2501.5,2501.4,17.247]
[1747682521162,3.99760143,2501.5,2501.4,25.983]
[1747682521999,3.99760143,2501.5,2501.4,17.247]
[1747682522209,4.79710854,2501.5,2501.4,25.983]
[1747682522422,3.99746972,2501.6,2501.4,25.983]
[1747682522423,3.99748843,2501.6,2501.4,25.983]
[1747682522572,3.99648309,2502.2,2501.5,4.357538]
[1747682522774,0.7563,2502.4,2501.6,0.12481361]
[1747682523005,0.7563,2502.7,2501.6,0.12481361]
[1747682523305,0.7563,2502.7,2501.7,4.77398067]
[1747682523508,4.75200302,2502.7,2501.8,14.727]
[1747682523712,3.99680255,2502.0,2501.9,8.736]
[1747682523885,3.99680255,2502.0,2501.9,11.130626]
[1747682524202,3.99654338,2502.2,2501.9,15.82003]
[1747682524514,3.99654338,2502.2,2501.9,8.860796]
[1747682524682,3.99654338,2502.2,2502.0,0.124796]
[1747682525387,3.99655226,2502.2,2502.1,0.124796]
[1747682527209,3.99639123,2502.3,2502.1,0.124796]
[1747682527510,4.7519922,2502.7,2502.1,0.124796]
[1747682527731,3.99632338,2502.3,2502.2,0.124796]
[1747682528540,3.99603119,2502.5,2502.2,0.124796]
[1747682528687,1.21581092,2503.0,2502.2,0.124796]
[1747682528894,3.99518735,2503.1,2502.3,4.92238756]
[1747682529085,3.99547506,2502.9,2502.4,29.98708376]
[1747682529279,3.99547506,2502.9,2502.5,11.085227]
[1747682529483,3.99579169,2502.7,2502.6,8.859796]
[1747682529814,3.99553429,2502.8,2502.6,11.95397833]
[1747682529994,3.99553429,2502.8,2502.6,4.42218443]
[1747682530197,0.793,2503.7,2502.8,0.7954]
[1747682530425,3.99439477,2503.6,2502.9,3.99536537]
[1747682530713,3.99404407,2503.8,2503.3,3.99464321]
[1747682530924,3.99411964,2503.7,2503.4,26.38846432]
[1747682531234,3.99411964,2503.7,2503.5,4.277497]
[1747682531394,3.9936872,2504.0,2503.6,8.820311]
[1747682531593,0.798,2504.3,2503.7,1.33389007]
[1747682531900,0.005,2504.3,2503.8,0.124796]
[1747682532242,0.005,2504.3,2503.4,30.68449928]
[1747682532243,0.005,2504.3,2503.9,8.859796]
[1747682532399,0.005,2504.3,2504.0,9.5416]
[1747682532747,0.005,2504.3,2504.0,9.666396]
[1747682532882,0.005,2504.3,2504.1,0.18118179]
[1747682533206,3.99826402,2504.3,2504.1,1.15345997]
[1747682533389,3.99826402,2504.3,2504.2,0.05638354]
[1747682533594,3.99826402,2504.3,2504.2,8.79038354]
[1747682533811,1.0903775,2505.9,2504.3,0.8076]
[1747682533990,3.99246538,2504.8,2504.4,30.0821927]
[1747682534191,3.99252193,2504.7,2504.4,36.0711927]
[1747682534521,3.99195925,2505.1,2504.5,11.40718501]
[1747682534717,3.99225708,2504.9,2504.5,0.12464901]
[1747682535036,3.99249411,2504.7,2504.6,2.82283801]
[1747682535204,3.99249411,2504.7,2504.6,16.7117]
[1747682535397,3.99249411,2504.7,2504.6,22.612498]
[1747682535721,3.99249411,2504.7,2504.6,17.463663]
[1747682536106,3.99249411,2504.7,2504.6,16.056572]
[1747682536313,3.99249411,2504.7,2504.6,15.435426]
[1747682536645,3.99249411,2504.7,2504.6,6.701426]
[1747682536794,3.99281293,2504.5,2504.4,17.25]
[1747682537214,3.99281293,2504.5,2504.4,25.981]
[1747682537599,3.99281293,2504.5,2504.4,17.25]
[1747682537818,3.99281293,2504.5,2504.4,25.981]
[1747682539434,3.99281293,2504.5,2504.4,17.25]
[1747682539599,3.99281293,2504.5,2504.4,25.98]
[1747682539794,4.90851672,2504.5,2504.4,25.98]
[1747682540400,3.99281293,2504.5,2504.4,25.98]
[1747682540700,3.99281293,2504.5,2504.4,28.935962]
[1747682540900,3.99217533,2504.9,2504.4,20.205962]
[1747682541086,3.99281293,2504.5,2504.4,25.98]
[1747682541285,3.99281293,2504.5,2504.4,30.636116]
[1747682541702,3.99281293,2504.5,2504.4,30.635116]
[1747682542001,3.99281293,2504.5,2504.4,25.979]
[1747682542205,4.79136024,2504.5,2504.4,25.979]
[1747682542407,5.56366024,2504.5,2504.4,25.979]
[1747682542731,6.11366024,2504.5,2504.4,25.979]
[1747682543119,3.99405047,2503.8,2503.6,0.7969]
[1747682543443,3.9938328,2503.9,2503.7,32.74072]
[1747682543640,3.99365138,2504.0,2503.8,2.593559]
[1747682543943,5.56366024,2504.5,2503.4,0.30151656]
[1747682543944,4.54297236,2504.4,2503.4,0.30151656]
[1747682544092,3.99361022,2504.0,2503.9,17.241]
[1747682544292,3.99361022,2504.0,2503.9,29.60963]
[1747682544498,3.99324333,2504.3,2503.9,29.61373]
[1747682544694,3.99324333,2504.3,2504.0,3.696334]
[1747682544895,3.99330207,2504.2,2504.0,3.44107701]
[1747682545332,3.99329127,2504.2,2504.0,3.44107701]
[1747682546335,0.8112,2504.8,2504.1,2.43118579]
[1747682546336,3.99304641,2504.4,2504.1,2.43118579]
[1747682546514,3.99304641,2504.4,2504.1,0.05638579]
[1747682546711,3.9931432,2504.3,2504.2,0.05638354]
[1747682546910,3.9931432,2504.3,2504.2,8.81238354]
[1747682547111,3.9931432,2504.3,2504.2,0.05638354]
[1747682547349,3.9931432,2504.3,2504.2,8.81238354]
[1747682547705,3.9931432,2504.3,2504.2,0.05638354]
[1747682547939,3.9931432,2504.3,2504.2,8.81138354]
[1747682548247,3.9931432,2504.3,2504.2,16.87722954]
[1747682548605,3.9931432,2504.3,2504.2,16.17746654]
[1747682548817,3.9931432,2504.3,2504.2,11.56756754]
[1747682549739,3.9931432,2504.3,2504.2,0.05638354]
[1747682549917,3.9931432,2504.3,2504.2,8.81138354]
[1747682550303,3.9931432,2504.3,2504.2,0.05638354]
[1747682550498,3.9931432,2504.3,2504.2,8.81138354]
[1747682552549,4.8056432,2504.3,2504.2,8.81138354]
[1747682553354,4.8056432,2504.3,2504.2,0.05638354]
[1747682553649,5.68550491,2504.3,2504.2,8.81138354]
[1747682554528,5.68550491,2504.3,2504.2,0.05638354]
[1747682554711,5.68550491,2504.3,2504.2,8.81138354]
[1747682555954,6.23550491,2504.3,2504.2,0.05638354]
[1747682556140,6.23550491,2504.3,2504.2,8.81138354]
[1747682556463,6.23550491,2504.3,2504.2,0.05638354]
[1747682556633,14.23550491,2504.3,2504.2,0.05638354]
[1747682556974,14.23550491,2504.3,2504.2,8.81138354]
[1747682558319,4.8056432,2504.3,2504.2,8.81138354]
[1747682558655,3.9931432,2504.3,2504.2,8.81138354]
[1747682558841,3.9931432,2504.3,2504.2,8.93607547]
[1747682560644,3.9931432,2504.3,2504.2,0.18107547]
[1747682560952,4.5431432,2504.3,2504.2,8.93707547]
[1747682561161,6.22505491,2504.3,2504.2,8.81238354]
[1747682561852,14.22505491,2504.3,2504.2,0.05638354]
[1747682562035,14.22505491,2504.3,2504.2,8.81238354]
[1747682562232,14.22505491,2504.3,2504.2,0.05638354]
[1747682562638,5.30446971,2503.9,2503.8,8.756]
[1747682562834,6.23428103,2503.9,2503.8,8.756]
[1747682563865,14.23428103,2503.9,2503.8,8.756]
[1747682565220,3.99456738,2503.4,2503.3,17.24]
[1747682565422,3.99456738,2503.4,2503.3,25.997]
[1747682565925,3.99456738,2503.4,2503.3,26.12174057]
[1747682566339,3.99456738,2503.4,2503.3,27.14175406]
[1747682567063,3.99456738,2503.4,2503.3,26.12174057]
[1747682567230,3.99456738,2503.4,2503.3,17.36474057]
[1747682567429,3.99456738,2503.4,2503.3,26.12174057]
[1747682567661,3.99456738,2503.4,2503.3,17.36474057]
[1747682567846,3.99456738,2503.4,2503.3,26.12174057]
[1747682568231,6.17336821,2503.4,2503.3,17.36474057]
[1747682568431,6.17336821,2503.4,2503.3,25.997]
[1747682569328,5.37446738,2503.4,2503.3,25.997]
[1747682570651,3.99456738,2503.4,2503.3,25.997]
[1747682571441,3.99456738,2503.4,2503.3,26.1217398]
[1747682572566,3.99456738,2503.4,2503.3,25.997]
[1747682575687,3.99584432,2502.6,2502.5,0.47034008]
[1747682575885,3.99584432,2502.6,2502.3,0.62601164]
[1747682575886,5.36856368,2502.4,2502.3,0.62601164]
[1747682576052,5.36952207,2501.8,2501.2,9.048]
[1747682576448,3.99792108,2501.3,2501.2,9.048]
[1747682576661,4.54792108,2501.3,2501.2,9.048]
[1747682576879,3.9987204,2500.8,2500.7,17.87643129]
[1747682577583,3.9987204,2500.8,2500.7,26.92643129]
[1747682578688,5.3201204,2500.8,2500.1,0.1]
[1747682578888,5.32108002,2500.2,2500.1,0.1]
[1747682579064,6.25314122,2500.2,2500.1,0.1]
[1747682582259,0.55,2499.6,2499.1,0.1]
[1747682582453,4.5512804,2499.2,2499.1,0.1]
[1747682582883,4.0012804,2499.2,2499.1,9.489]
[1747682583586,4.0012804,2499.2,2499.1,1.0489]
[1747682583786,4.0012804,2499.2,2499.1,10.4419]
[1747682584460,4.0012804,2499.2,2499.1,9.493]
[1747682585396,4.0006276,2499.7,2499.2,8.0]
[1747682585693,4.0,2500.0,2499.2,8.0]
[1747682585896,4.00112031,2499.3,2499.1,0.8879]
[1747682586191,4.00112031,2499.3,2499.2,9.393]
[1747682586393,4.00029171,2499.9,2499.2,12.892564]
[1747682586563,4.00112031,2499.3,2499.2,18.42109]
[1747682586894,3.99964474,2500.3,2499.2,23.490438]
[1747682587091,4.00090811,2499.5,2499.2,18.42109]
[1747682587994,4.0006504,2499.6,2499.2,18.42109]
[1747682587995,4.00096834,2499.4,2499.2,18.42109]
[1747682588315,0.55,2500.2,2499.3,8.0]
[1747682588495,4.0008078,2499.5,2499.2,10.42109]
[1747682588695,3.99984,2500.1,2499.3,1.130899]
[1747682588998,4.00089913,2499.5,2499.3,1.130899]
[1747682589169,4.00096023,2499.4,2499.3,9.130899]
[1747682589374,3.99984,2500.1,2499.3,9.130899]
[1747682589375,4.00090662,2499.5,2499.3,9.130899]
[1747682589583,4.00096023,2499.4,2499.3,9.130899]
[1747682590296,4.00087283,2499.5,2499.3,9.130899]
[1747682590492,3.99984,2500.1,2499.3,9.130899]
[1747682590493,4.00072235,2499.6,2499.3,9.130899]
[1747682590697,0.768,2500.8,2499.5,4.82248514]
[1747682591014,3.99875955,2500.8,2500.0,0.7667]
[1747682591176,3.99984,2500.1,2500.0,0.7667]
[1747682591376,3.99984,2500.1,2500.0,36.094601]
[1747682591678,3.99976214,2500.2,2500.1,8.0]
[1747682591981,3.99976214,2500.2,2500.1,17.396]
[1747682592895,3.99902938,2500.7,2500.1,17.396]
[1747682593096,3.99931185,2500.5,2500.1,17.396]
[1747682593403,3.9993601,2500.4,2500.2,3.94296754]
[1747682593910,3.99928114,2500.5,2500.4,8.0]
[1747682595313,3.99920015,2500.5,2500.4,8.0]
[1747682595607,3.9991212,2500.6,2500.4,8.0]
[1747682595818,3.99911651,2500.6,2500.4,8.0]
[1747682595988,3.99911651,2500.6,2500.4,9.19429675]
[1747682596677,3.99911651,2500.6,2500.5,0.7711]
[1747682597096,0.55,2500.6,2499.2,0.7711]
[1747682597293,4.0012804,2499.2,2499.1,0.1]
[1747682597532,4.0012804,2499.2,2499.1,9.495]
[1747682597739,4.0012804,2499.2,2499.1,0.1]
[1747682598041,4.0012804,2499.2,2499.1,9.495]
[1747682598496,4.5512804,2499.2,2499.1,9.496]
[1747682598930,4.5512804,2499.2,2499.1,0.1]
[1747682599117,5.8066195,2499.2,2499.1,9.496]
[1747682599499,4.0012804,2499.2,2499.1,9.496]
[1747682601242,4.00098778,2499.4,2499.1,9.496]
[1747682601544,4.00043373,2499.8,2499.3,4.00104687]
[1747682601741,0.7994,2500.6,2499.2,23.71985]
[1747682601742,4.79846415,2500.6,2499.6,4.00052937]
[1747682602039,3.99960689,2500.3,2499.7,9.397]
[1747682602345,0.7956,2500.9,2499.8,13.3400669]
[1747682602346,4.79431175,2500.9,2499.8,13.3400669]
[1747682602515,3.99945395,2500.4,2500.1,0.7874]
[1747682602843,3.99952005,2500.3,2500.2,9.397]
[1747682603255,3.99968002,2500.2,2499.9,17.269]
[1747682603553,4.0,2500.0,2499.9,17.269]
[1747682603705,4.0,2500.0,2499.9,26.666]
[1747682604838,4.0,2500.0,2499.9,26.79090192]
[1747682605351,4.0,2500.0,2499.9,26.666]
[1747682605644,4.0,2500.0,2499.9,34.666]
[1747682606346,4.0,2500.0,2499.9,34.79089918]
[1747682607210,4.0,2500.0,2499.9,34.78989918]
[1747682610944,4.0,2500.0,2499.9,25.39389918]
[1747682611137,4.0,2500.0,2499.9,34.78989918]
[1747682612247,4.0,2500.0,2499.9,25.39389918]
[1747682612420,4.0,2500.0,2499.9,34.78989918]
[1747682612816,4.0,2500.0,2499.9,17.39389918]
[1747682613021,4.0,2500.0,2499.9,26.67989918]
[1747682613022,5.34998714,2500.0,2499.9,26.67989918]
[1747682613718,5.34998714,2500.0,2499.9,17.39389918]
[1747682613940,4.79998714,2500.0,2499.9,26.67989918]
[1747682614355,4.0,2500.0,2499.9,26.67989918]
[1747682614857,4.0,2500.0,2499.9,34.67989918]
[1747682616640,4.0,2500.0,2499.9,25.39389918]
[1747682616944,4.0,2500.0,2499.9,34.67889918]
[1747682617834,3.99862057,2500.9,2500.0,8.0]
[1747682618035,3.9987204,2500.8,2500.0,8.0]
[1747682618375,3.9987204,2500.8,2499.9,18.21059918]
[1747682618376,3.99952005,2500.3,2500.2,8.0]
[1747682618962,3.99952005,2500.3,2500.2,8.12489918]
[1747682619157,3.99952005,2500.3,2500.2,0.12489918]
[1747682619363,3.99952005,2500.3,2500.2,9.40989918]
[1747682619566,4.79941161,2500.3,2500.2,9.40989918]
[1747682620865,4.79941161,2500.3,2500.2,0.12489918]
[1747682621163,5.62071161,2500.3,2500.2,9.40989918]
[1747682621566,6.17071161,2500.3,2500.2,9.40989918]
[1747682621765,6.17071161,2500.3,2500.2,0.12489918]
[1747682621952,6.17071161,2500.3,2500.2,9.40989918]
[1747682622361,4.54984,2500.1,2500.0,17.267]
[1747682622563,5.96686678,2500.1,2500.0,26.552]